Workbook

Sheet 报价表
A1: 湖北宜昌和友硫酸仓储物流新建项目酸罐制作安装工程劳务分包报价表
A3: 序号 | B3: 名称及标段 | C3: 工作内容 | D3: 单位 | E3: 数量 | F3: 限价（元） | H3: 报价（元） | J3: 说 明
F4: 单价 | G4: 合价 | H4: 单价 | I4: 合价
A5: 一 | B5: 一标段 | C5: （8台酸罐制作安装）
A6: 1 | B6: 罐体 | C6: 1、制作、安装； 2、包含材料现场倒运； 3、包含灌水试验、脚手架租赁搭拆等； 4、包含平台、栏杆、盘梯制作安装（每座罐约2.837吨）； 5、罐体每座重量约为292.807吨； 6、其他未尽事宜详见图纸。 | D6: 吨 | E6: =8*(292.807+2.837) -> 2365.152 | F6: 1300 | G6: =F6*E6 -> 3074697.60 | J6: 1、罐体、顶盖、底板，以钢板为主； 2、平台、栏杆、盘梯主要为钢管、花纹板等； 3、罐体以法兰为界限，含第一片法兰。
A7: 2 | B7: 底座 | C7: 1、制作、安装； 2、包含材料现场倒运； 3、免费制作安装铅板（每座罐约9吨），不计入总重量； 4、每座罐体的底座重量约为61.387吨； 5、其他未尽事宜详见图纸。 | D7: 吨 | E7: =8*(61.387) -> 491.096 | F7: 1000 | G7: =F7*E7 -> 491096.00 | J7: 1、底座主要为工字钢。
B8: 小计 | G8: =G7+G6 -> 3565793.60 | I8: =I7+I6 -> 0
A9: 二 | B9: 二标段 | C9: （2台酸罐、1台硫酸地下储槽制作安装）
A10: 1 | B10: 罐体 | C10: 1、制作、安装； 2、包含材料现场倒运； 3、包含灌水试验、脚手架租赁搭拆等； 4、包含平台、栏杆、盘梯制作安装（每座罐约2.837吨）； 5、罐体每座重量约为292.807吨；硫酸地下储槽约9.9吨； 6、其他未尽事宜详见图纸。 | D10: 吨 | E10: =2*(292.807+2.837)+9.9 -> 601.188 | F10: 1300 | G10: =F10*E10 -> 781544.40 | J10: 1、罐体、顶盖、底板，以钢板为主； 2、平台、栏杆、盘梯主要为钢管、花纹板等； 3、罐体以法兰为界限，含第一片法兰。
A11: 2 | B11: 底座 | C11: 1、制作、安装； 2、包含材料现场倒运； 3、免费制作安装铅板（每座罐约9吨），不计入总重量； 4、每座罐体的底座重量约为61.387吨； 5、其他未尽事宜详见图纸。 | D11: 吨 | E11: =2*(61.387) -> 122.774 | F11: 1000 | G11: =F11*E11 -> 122774.00 | J11: 1、底座主要为工字钢。
B12: 小计 | G12: =G11+G10 -> 904318.40 | I12: =I11+I10 -> 0
A13: 三 | B13: 三标段 | C13: （10台酸罐、1台硫酸地下储槽防腐）
A14: 1 | B14: 罐体 | C14: 1、防腐 2、防腐要求： 1）第二遍底漆：环氧红丹防锈漆打底； 2）中间漆：环氧云铁中间漆； 3）喷三遍面漆：户外型氯化橡胶磁漆，干膜厚度0.15(白色)； 4）漆膜干膜总厚度>240μm. 3、工作内容： 1）防腐刷油； 2）甲供钢板底漆破损修复。 4、包含油漆及稀释剂；其他未尽事宜详见图纸。 | D14: m2 | E14: =2100*10 -> 21000 | F14: 34 | G14: =F14*E14 -> 714000.00
A15: 2 | B15: 罐体底板 | C15: 1、防腐 2、防腐要求： 1）环氧煤沥青涂料两遍， 2）干膜总厚度>80μm。 3、工作内容： 1）防腐刷油； 2）甲供钢板底漆破损修复。 4、包含油漆及稀释剂；其他未尽事宜详见图纸。 | D15: m2 | E15: =448*10 -> 4480 | F15: =21 -> 21 | G15: =F15*E15 -> 94080.00
A16: 3 | B16: 底座以及平台、栏杆、盘梯等铁构件除锈防腐 | C16: 1、防腐 2、防腐要求： 1）第二遍底漆：环氧红丹防锈漆打底； 2）中间漆：环氧云铁中间漆； 3）喷三遍面漆：户外型氯化橡胶磁漆，干膜厚度0.15(根据现场确定颜色)； 4）漆膜干膜总厚度>240μm. 3、工作内容： 1）防腐刷油； 2）甲供钢板底漆破损修复。 4、包含油漆及稀释剂；其他未尽事宜详见图纸。 | D16: m2 | E16: =10*(61.387+2.837)*25 -> 16056 | F16: 34 | G16: 545904.00 | J16: 总重量约642.2吨，其中平台、栏杆、盘梯等铁构件约28.37吨。
A17: 4 | B17: 底座 | C17: 1、防腐 2、防腐要求： 1）环氧煤沥青涂料两遍， 2）干膜总厚度>80μm。 3、工作内容： 1）防腐刷油； 2）甲供钢板底漆破损修复。 4、包含油漆及稀释剂；其他未尽事宜详见图纸。 | D17: m2 | E17: =10*61.387*25 -> 15346.75 | F17: =21 -> 21 | G17: =F17*E17 -> 322281.75 | J17: 总重量约613.9吨
B18: 小计 | G18: =SUM(G14:G17) -> 1676265.75 | I18: =SUM(I14:I17) -> 0
A19: 四 | B19: 四标段 | C19: （10台酸罐探伤）
A20: 1 | B20: 探伤 | C20: 1、探伤； 2、拍片，提供底片等材料。 3、设备自行解决。 4、其他未尽事宜详见图纸。 | D20: 张 | E20: 40000 | F20: 27 | G20: =F20*E20 -> 1080000.00
B21: 小计 | G21: =G20 -> 1080000.00 | I21: =I20 -> 0
A22: 五 | B22: 五标段 | C22: 罐区附属安装
A23: 1 | B23: 罐区附属零星安装（电气、仪表、设备、管道等） | C23: 1、安装及施工措施 | F23: 安徽省2018清单 综合单价下浮10%
B24: 合 计 | D24: 元 | G24: =G21+G18+G12+G8 -> 7226377.75 | I24: =I21+I18+I12+I8 -> 0
A25: 说 明 | B25: 1、一、二标段招标方提供：辅材（焊条、焊丝、氧气、乙炔）、起重设备（起重机、把杆、电动环链提升机）；住宿（10间带空调活动板房及床铺）；水电。
B26: 一、二标段投标方提供：卷板机、剪板机、切割设备、电焊机及其他招标方未提供的辅材、机具等。
B27: 2、三标段报价包含机械费以及高空作业等措施费。
B28: 3、五标段：当劳务结算的单价高于与业主结算单价时，以与业主结单价作为下浮计算基数；
B29: 4、一、二、三、四标段单价、总价报价均不得高于对应的最高限价；五标段报价不得低于最低下浮率。
H31: 投 标 人：
H32: 法定代表人：
H33: 日 期：
